bitfinex/quotes_BTCUSD_20220303
["timestamp","ask_amount","ask_price","bid_price","bid_amount"]
[1646319859132,0.48463411,43524.0,43523.0,0.355548]
[1646319859937,0.48463411,43524.0,43523.0,0.59907577]
[1646319860372,0.48463411,43524.0,43523.0,0.355548]
[1646319860773,0.48403457,43524.0,43523.0,0.355548]
[1646319861177,0.29940046,43524.0,43523.0,0.355548]
[1646319862783,0.28591718,43524.0,43523.0,0.355548]
[1646319863378,0.28091718,43524.0,43523.0,0.355548]
[1646319864125,0.28091718,43524.0,43523.0,0.359548]
[1646319865328,0.28091718,43524.0,43523.0,0.355548]
[1646319866126,0.28091718,43524.0,43523.0,0.358548]
[1646319867431,0.28091718,43524.0,43521.0,0.114929]
[1646319867432,0.44539664,43524.0,43521.0,0.114929]
[1646319867685,0.44539664,43524.0,43517.0,0.56698456]
[1646319868482,0.00013821,43523.0,43517.0,0.56698456]
[1646319869284,0.17244177,43522.0,43517.0,0.56698456]
[1646319869484,0.355548,43520.0,43517.0,0.16457981]
[1646319869682,0.355548,43518.0,43517.0,0.16457981]
[1646319869881,0.8978389,43518.0,43506.0,0.01148]
[1646319870081,0.47054076,43516.0,43506.0,0.01148]
[1646319870279,0.47054076,43516.0,43500.0,0.16027227]
[1646319870280,0.17442612,43508.0,43500.0,0.16027227]
[1646319870483,0.17442612,43508.0,43501.0,0.057499]
[1646319870682,0.05750018,43507.0,43501.0,0.057499]
[1646319870880,0.07121898,43507.0,43501.0,0.057499]
[1646319871085,0.37121898,43507.0,43501.0,0.057499]
[1646319871346,0.11500221,43506.0,43501.0,0.057499]
[1646319871546,0.12787197,43506.0,43501.0,0.057499]
[1646319871748,0.42620932,43505.0,43501.0,0.057499]
[1646319871949,0.42620932,43505.0,43492.0,0.115017]
[1646319871950,0.355548,43503.0,43492.0,0.115017]
[1646319872149,0.19796472,43500.0,43498.0,0.00013825]
[1646319872349,0.655548,43499.0,43498.0,0.00013825]
[1646319872548,0.21000967,43500.0,43498.0,0.00013825]
[1646319872748,0.5,43498.0,43496.0,0.004]
[1646319872948,0.355548,43497.0,43496.0,0.004]
[1646319873348,0.01055055,43498.0,43487.0,0.115027]
[1646319873349,0.1150378,43496.0,43487.0,0.115027]
[1646319873548,0.12423462,43496.0,43487.0,0.115027]
[1646319873749,0.07027449,43495.0,43493.0,0.18327459]
[1646319874350,0.07027449,43495.0,43491.0,0.172531]
[1646319874747,0.07027449,43495.0,43492.0,0.20934148]
[1646319875189,0.07027449,43495.0,43492.0,0.32436548]
[1646319875589,0.07027449,43495.0,43493.0,0.355548]
[1646319875590,0.01275559,43495.0,43493.0,0.355548]
[1646319875989,0.0575023,43498.0,43493.0,0.70061187]
[1646319876392,0.06777358,43498.0,43493.0,0.355548]
[1646319876589,0.06777358,43498.0,43494.0,0.268511]
[1646319876791,0.06777358,43498.0,43494.0,0.115014]
[1646319876990,0.11500748,43502.0,43498.0,0.13554715]
[1646319877191,0.12524296,43502.0,43498.0,0.13554715]
[1646319877490,0.12524296,43502.0,43498.0,0.19305315]
[1646319877891,0.355548,43501.0,43498.0,0.19305315]
[1646319878090,0.12524296,43502.0,43498.0,0.19305315]
[1646319878293,0.12524296,43502.0,43498.0,0.25056515]
[1646319878490,0.12524296,43502.0,43498.0,0.41307171]
[1646319878691,0.12524296,43502.0,43498.0,0.25056515]
[1646319880735,0.05750337,43503.0,43499.0,0.55911605]
[1646319880936,0.05750337,43503.0,43499.0,0.355548]
[1646319881134,0.06788389,43503.0,43499.0,0.355548]
[1646319881735,0.11499534,43502.0,43498.0,0.25056515]
[1646319881933,0.11499534,43502.0,43499.0,0.355548]
[1646319881934,0.12755302,43502.0,43499.0,0.355548]
[1646319882584,0.12755302,43502.0,43498.0,0.19305915]
[1646319882791,0.42755302,43502.0,43498.0,0.19305915]
[1646319882986,0.655548,43501.0,43498.0,0.13554715]
[1646319883188,0.27486602,43495.0,43491.0,0.115028]
[1646319883388,0.33238509,43495.0,43491.0,0.115028]
[1646319883691,0.07060362,43495.0,43490.0,0.057513]
[1646319884087,0.07060362,43495.0,43491.0,0.005]
[1646319884487,0.07060362,43495.0,43492.0,0.21991277]
[1646319884688,0.07060362,43495.0,43491.0,0.062513]
[1646319884887,0.07060362,43495.0,43492.0,0.355548]
[1646319886089,0.07060362,43495.0,43490.0,0.057513]
[1646319886332,0.07060362,43495.0,43492.0,0.057511]
[1646319887331,0.07060362,43495.0,43492.0,0.25977992]
[1646319887631,0.07060362,43495.0,43491.0,0.115016]
[1646319887830,0.07060362,43495.0,43491.0,0.31972282]
[1646319888130,0.07060362,43495.0,43491.0,0.11517777]
[1646319888731,0.07060362,43495.0,43491.0,0.115016]
[1646319888933,0.07060362,43495.0,43491.0,0.00016177]
[1646319889131,0.07060362,43495.0,43491.0,0.05767577]
[1646319889335,0.07060362,43495.0,43492.0,0.355548]
[1646319889533,0.07060362,43495.0,43492.0,0.470561]
[1646319889835,0.01123256,43496.0,43494.0,0.268522]
[1646319890086,0.07000197,43498.0,43493.0,0.34653081]
[1646319890285,0.05749763,43498.0,43495.0,0.057495]
[1646319890487,0.06889544,43498.0,43495.0,0.057495]
[1646319890687,0.06889544,43498.0,43497.0,0.21918143]
[1646319890885,0.06889544,43498.0,43495.0,0.057495]
[1646319894149,0.06889544,43498.0,43492.0,0.057519]
[1646319894744,0.1815757,43496.0,43492.0,0.057519]
[1646319896044,0.00886438,43497.0,43492.0,0.057519]
[1646319896247,0.00886438,43497.0,43493.0,0.355548]
[1646319896446,0.00886438,43497.0,43493.0,0.528057]
[1646319897346,0.00886438,43497.0,43496.0,0.268499]
[1646319897580,0.00886438,43497.0,43493.0,0.1726565]
[1646319897782,0.00886438,43497.0,43493.0,0.1151525]
[1646319898384,0.00886438,43497.0,43493.0,0.115005]
[1646319898583,0.00886438,43497.0,43493.0,0.1151525]
[1646319899487,0.00886438,43497.0,43493.0,0.115005]
[1646319899686,0.00886438,43497.0,43495.0,0.01845802]
[1646319899885,0.00886438,43497.0,43493.0,0.1151525]
[1646319900086,0.00886438,43497.0,43493.0,0.1746625]
[1646319900686,0.00886438,43497.0,43493.0,0.174515]
[1646319900888,0.00886438,43497.0,43493.0,0.1171525]
[1646319901088,0.23609003,43496.0,43493.0,0.1171525]
[1646319901350,1.0,43495.0,43490.0,0.172512]
[1646319901540,1.0,43495.0,43484.0,0.0011]
[1646319901541,0.05753433,43492.0,43484.0,0.0011]
[1646319901742,0.3,43491.0,43484.0,0.0011]
[1646319902339,0.3,43491.0,43484.0,0.116158]
[1646319902540,0.3,43491.0,43484.0,0.0011]
[1646319902541,0.355416,43490.0,43484.0,0.0011]
[1646319903043,0.3,43489.0,43484.0,0.0011]
[1646319903245,0.41295038,43488.0,43483.0,0.18975308]
[1646319903441,0.655416,43487.0,43483.0,0.18975308]
[1646319903644,0.07099376,43488.0,43483.0,0.24728408]
[1646319903842,0.37099376,43488.0,43483.0,0.24728408]
[1646319904041,0.07099376,43488.0,43483.0,0.24728408]
[1646319904242,0.07099376,43488.0,43484.0,0.18850672]
[1646319904446,0.07099376,43488.0,43485.0,0.287055]
[1646319904647,0.07099376,43488.0,43483.0,0.30480608]
[1646319905086,0.07099376,43488.0,43483.0,0.24728408]
[1646319905491,0.07099376,43488.0,43486.0,0.287048]
[1646319905686,0.07099376,43488.0,43487.0,0.28704]
[1646319905886,0.07099376,43488.0,43486.0,0.287046]
[1646319906087,0.07099376,43488.0,43486.0,0.292046]
[1646319906288,0.07099376,43488.0,43486.0,0.005]
[1646319906890,0.44243473,43487.0,43486.0,0.005]
[1646319907488,0.44243473,43487.0,43483.0,0.057531]
[1646319907690,0.355416,43487.0,43483.0,0.057531]
[1646319908088,0.001,43487.0,43483.0,0.057531]
[1646319908689,0.001,43487.0,43482.0,0.11615]
[1646319909372,0.07099376,43488.0,43482.0,0.11615]
[1646319909974,0.07099376,43488.0,43485.0,0.20581597]
[1646319910172,0.07399376,43488.0,43485.0,0.20581597]
[1646319910372,0.07399376,43488.0,43486.0,0.2563421]
[1646319910572,0.07399376,43488.0,43486.0,0.3138611]
[1646319911175,0.07399376,43488.0,43487.0,0.287042]
[1646319911372,0.07099376,43488.0,43487.0,0.587042]
[1646319911572,0.11501418,43495.0,43487.0,0.68831132]
[1646319911773,0.11501418,43495.0,43489.0,0.402032]
[1646319911973,0.12570791,43495.0,43491.0,0.287006]
[1646319912374,0.12570791,43495.0,43494.0,0.1709021]
[1646319912579,0.12570791,43495.0,43494.0,0.68290017]
[1646319912778,0.12570791,43495.0,43494.0,0.4578841]
[1646319913380,0.12570791,43495.0,43492.0,0.057504]
[1646319913585,0.12570791,43495.0,43494.0,0.286983]
[1646319913880,0.01069373,43495.0,43494.0,0.286983]
[1646319914281,0.01069373,43495.0,43494.0,0.291983]
[1646319914983,8.101e-05,43499.0,43494.0,0.65423957]
[1646319915187,0.05,43509.0,43503.0,0.15414388]
[1646319915383,0.05,43509.0,43504.0,0.2869]
[1646319915384,0.01101485,43509.0,43504.0,0.2869]
[1646319915981,0.12599254,43509.0,43505.0,0.03722382]
[1646319916181,0.12599254,43509.0,43506.0,0.286885]
[1646319916182,0.01101485,43509.0,43506.0,0.286885]
[1646319916431,0.01101485,43509.0,43506.0,0.329285]
[1646319916630,0.01109579,43509.0,43506.0,0.329285]
[1646319916830,0.01109579,43509.0,43506.0,0.386769]
[1646319917032,0.01109579,43509.0,43507.0,0.21689572]
[1646319917235,8.094e-05,43509.0,43508.0,0.43053932]
[1646319917631,0.05748027,43511.0,43508.0,0.79350227]
[1646319917835,0.06787375,43511.0,43508.0,0.69223295]
[1646319918033,8.094e-05,43511.0,43509.0,0.057474]
[1646319918234,0.05265,43514.0,43509.0,0.057474]
[1646319918235,0.05265,43514.0,43511.0,1.0]
[1646319918432,0.05265,43514.0,43513.0,0.03722382]
[1646319918631,0.05265,43514.0,43513.0,0.66645282]
[1646319919032,0.05265,43514.0,43513.0,0.76645282]
[1646319919233,0.05265,43514.0,43513.0,0.46645282]
[1646319920179,0.05265,43514.0,43513.0,0.47045282]
[1646319920383,0.12782645,43515.0,43513.0,0.333229]
[1646319920579,0.07034192,43515.0,43513.0,0.333229]
[1646319921383,0.05747923,43515.0,43514.0,0.49783563]
[1646319921787,0.0001608,43516.0,43514.0,0.49783563]
[1646319921980,0.01392266,43515.0,43514.0,0.49783563]
[1646319922180,0.0001608,43516.0,43514.0,0.60183563]
[1646319922382,0.43009591,43521.0,43515.0,0.286813]
[1646319922581,0.01379591,43521.0,43520.0,0.05493287]
[1646319922885,0.01379591,43521.0,43520.0,0.286772]
[1646319923480,0.01379591,43521.0,43515.0,0.1]
[1646319923681,0.01379591,43521.0,43514.0,0.26848963]
[1646319923682,0.01379591,43521.0,43516.0,0.2868]
[1646319924529,0.01379591,43521.0,43516.0,0.54962518]
[1646319924928,0.01379591,43521.0,43516.0,0.2868]
[1646319925127,0.0139517,43521.0,43516.0,0.2868]
[1646319925329,0.0139517,43521.0,43511.0,0.04322382]
[1646319925536,0.0139517,43521.0,43498.0,0.114978]
[1646319925537,0.15,43516.0,43498.0,0.114978]
[1646319925730,0.15,43516.0,43492.0,0.00015589]
[1646319925731,0.15,43513.0,43492.0,0.00015589]
[1646319925931,0.17254817,43504.0,43490.0,1.2807]
[1646319926129,0.65537,43503.0,43493.0,0.005]
[1646319926331,0.15453222,43499.0,43493.0,0.005]
[1646319926528,0.65537,43498.0,43493.0,0.005]
[1646319926729,0.35537,43497.0,43493.0,0.005]
[1646319926928,0.36982898,43498.0,43493.0,0.005]
[1646319927130,0.35537,43496.0,43493.0,0.005]
[1646319927328,0.15453222,43499.0,43493.0,0.005]
[1646319927329,0.35537,43494.0,43493.0,0.005]
[1646319927581,0.35537,43494.0,43492.0,0.00015584]
[1646319928187,0.07034861,43495.0,43492.0,0.00015584]
[1646319928382,0.07034861,43495.0,43487.0,0.003]
[1646319928383,0.35537,43494.0,43487.0,0.003]
[1646319928583,0.35537,43494.0,43492.0,0.21664211]
[1646319928783,0.07034861,43495.0,43492.0,0.21664211]
[1646319928985,0.07034861,43495.0,43491.0,0.00014726]
[1646319928986,0.35537,43494.0,43491.0,0.00014726]
[1646319929181,0.37034861,43495.0,43491.0,0.00014726]
[1646319929182,0.35537,43493.0,43491.0,0.00014726]
[1646319929581,0.35537,43493.0,43482.0,0.0011]
[1646319929783,0.0120002,43494.0,43490.0,0.00014726]
[1646319929984,0.51768298,43493.0,43490.0,0.00014726]
[1646319930789,0.51768298,43493.0,43483.0,0.21290901]
[1646319930989,0.29807003,43492.0,43489.0,0.00014726]
[1646319931188,0.29807003,43492.0,43479.0,0.0022]
[1646319931189,1.18224429,43490.0,43479.0,0.0022]
[1646319931450,0.69777,43489.0,43479.0,0.0022]
[1646319931650,0.34441192,43488.0,43479.0,0.0022]
[1646319931849,0.17024125,43485.0,43479.0,0.0011]
[1646319932050,0.35537,43484.0,43479.0,0.0011]
[1646319932250,0.35537,43484.0,43477.0,0.5441]
[1646319932251,0.65,43482.0,43477.0,0.5441]
[1646319932452,0.35537,43481.0,43477.0,0.5221]
[1646319932651,0.66181167,43482.0,43477.0,0.5144]
[1646319932652,0.35537,43479.0,43477.0,0.5144]
[1646319932952,0.65537,43478.0,43477.0,0.03725076]
[1646319933354,0.35537,43477.0,43476.0,0.0011]
[1646319933551,0.65537,43477.0,43476.0,0.0011]
[1646319933851,0.35537,43475.0,43468.0,0.0033]
[1646319934051,0.35537,43473.0,43468.0,0.0033]
[1646319934254,0.35537,43472.0,43471.0,0.0105]
[1646319934452,0.35537,43474.0,43471.0,0.0105]
[1646319934650,0.35537,43473.0,43471.0,0.0105]
[1646319935087,0.01276414,43474.0,43471.0,0.0105]
[1646319935284,0.35537,43473.0,43471.0,0.0105]
[1646319935484,0.35537,43472.0,43471.0,0.0105]
[1646319935687,0.06920498,43473.0,43471.0,0.0105]
[1646319936284,0.06920498,43473.0,43471.0,0.0135]
[1646319936885,0.68508673,43478.0,43474.0,0.26814333]
[1646319936886,0.48264241,43478.0,43474.0,0.26814333]
[1646319937086,0.35537,43476.0,43474.0,0.26814333]
[1646319938288,0.35537,43476.0,43474.0,0.26914333]
[1646319938593,0.06705196,43477.0,43474.0,0.26914333]
[1646319939444,0.06705196,43477.0,43474.0,0.26814333]
[1646319940244,0.06905196,43477.0,43474.0,0.26814333]
[1646319941646,0.06705196,43477.0,43474.0,0.26814333]
[1646319942347,0.06705196,43477.0,43474.0,0.27214333]
[1646319943700,0.06705196,43477.0,43474.0,0.26814333]
[1646319945104,0.35537,43476.0,43474.0,0.26814333]
[1646319945303,0.35337,43476.0,43474.0,0.26814333]
[1646319945700,0.35337,43476.0,43473.0,0.00014748]
[1646319946347,0.35337,43476.0,43473.0,0.001]
[1646319947149,0.54142085,43476.0,43473.0,0.001]
[1646319947349,0.54142085,43476.0,43471.0,0.0105]
[1646319948351,0.54342085,43476.0,43471.0,0.0105]
[1646319948750,0.355387,43475.0,43471.0,0.0105]
[1646319949054,0.355387,43474.0,43471.0,0.0105]
[1646319949252,0.355387,43475.0,43471.0,0.0105]
[1646319949549,0.20064148,43476.0,43471.0,0.0105]
[1646319949749,0.355387,43475.0,43471.0,0.0105]
[1646319949953,0.20064148,43476.0,43471.0,0.01]
[1646319950193,0.20064148,43476.0,43464.0,0.021094]
[1646319950194,0.057539,43467.0,43464.0,0.021094]
[1646319950992,0.056439,43467.0,43464.0,0.021094]
[1646319951194,0.056439,43467.0,43465.0,0.15971891]
[1646319951394,0.056439,43467.0,43466.0,0.021103]
[1646319951995,0.49,43469.0,43466.0,0.021103]
[1646319952395,0.49,43469.0,43466.0,0.025103]
[1646319952596,0.49,43469.0,43467.0,0.2339637]
[1646319952796,0.49,43469.0,43468.0,0.021099]
[1646319953933,0.49,43469.0,43468.0,0.021098]
[1646319954136,0.49,43469.0,43467.0,0.2339637]
[1646319954336,0.49,43469.0,43468.0,0.004]
[1646319954734,0.49,43469.0,43468.0,0.025099]
[1646319954934,0.49,43469.0,43468.0,0.004]
[1646319955133,0.49,43469.0,43468.0,0.025098]
[1646319955333,0.49,43469.0,43468.0,0.004]
[1646319955533,0.49,43469.0,43468.0,0.021098]
[1646319956134,0.49,43469.0,43466.0,0.021099]
[1646319956334,0.49,43469.0,43468.0,0.004]
[1646319956535,0.14477929,43469.0,43468.0,0.025098]
[1646319956757,0.14477929,43469.0,43468.0,0.004]
[1646319958302,0.14577929,43469.0,43466.0,0.00015967]
[1646319958500,0.14577929,43469.0,43465.0,0.15971891]
[1646319958902,0.14577929,43469.0,43464.0,0.05753552]
[1646319958903,0.355387,43468.0,43464.0,0.05753552]
[1646319959103,0.355387,43468.0,43463.0,0.0041]
[1646319959104,0.21277618,43465.0,43463.0,0.0041]
[1646319959309,0.5,43463.0,43462.0,0.0011]
[1646319959502,0.5,43463.0,43458.0,0.11622026]
[1646319959503,0.8,43462.0,43458.0,0.11622026]
[1646319959704,0.56816318,43460.0,43458.0,0.11622026]
[1646319959902,0.56816318,43460.0,43458.0,0.0011]
[1646319959903,0.81509308,43459.0,43458.0,0.0011]
[1646319960101,0.755387,43458.0,43453.0,0.0011]
[1646319960301,0.95970608,43459.0,43453.0,0.0011]
[1646319960503,0.5,43459.0,43453.0,0.0011]
[1646319960702,0.5,43459.0,43454.0,0.17376312]
[1646319961104,0.8,43459.0,43451.0,0.1561493]
[1646319961329,0.5,43459.0,43451.0,0.1561493]
[1646319961533,0.5,43459.0,43455.0,0.05757063]
[1646319961934,0.3,43458.0,43455.0,0.05757063]
[1646319962333,0.3,43458.0,43454.0,0.17266312]
[1646319962534,0.20906992,43457.0,43454.0,0.17266312]
[1646319962939,0.20906992,43457.0,43450.0,0.05977604]
[1646319962940,0.18194241,43451.0,43450.0,0.05977604]
[1646319963136,0.18194241,43451.0,43450.0,0.05427604]
[1646319963539,0.24876823,43450.0,43446.0,0.021129]
[1646319963738,0.18194241,43451.0,43444.0,0.0022]
[1646319964138,0.18194241,43451.0,43447.0,0.17168893]
[1646319964342,0.0424,43450.0,43447.0,0.15168893]
[1646319964542,0.8,43448.0,43442.0,0.0011]
[1646319964736,0.8,43448.0,43441.0,0.0111]
[1646319964737,0.915175,43448.0,43441.0,0.0067]
[1646319964938,0.61359533,43447.0,43440.0,0.004]
[1646319965188,0.22681092,43441.0,43440.0,0.004]
[1646319965588,0.52681092,43441.0,43439.0,0.0022]
[1646319965790,0.3,43440.0,43439.0,0.0022]
[1646319965990,0.655387,43440.0,43439.0,0.0022]
[1646319966192,1.353387,43439.0,43435.0,0.0022]
[1646319966394,0.26178462,43431.0,43430.0,0.0033]
[1646319966590,0.26178462,43431.0,43429.0,0.0022]
[1646319966591,0.707902,43431.0,43429.0,0.0022]
[1646319966794,0.707902,43431.0,43420.0,9.83854443]
[1646319966795,0.2949,43430.0,43420.0,9.82594443]
[1646319966990,0.55951674,43432.0,43421.0,0.6]
[1646319966991,0.38969191,43432.0,43421.0,0.6]
[1646319967194,0.355387,43431.0,43428.0,0.00015935]
[1646319967793,0.855387,43431.0,43424.0,0.11521154]
[1646319968593,0.23964748,43430.0,43424.0,0.11521154]
[1646319968841,0.855387,43429.0,43424.0,0.11521154]
[1646319969042,0.855387,43429.0,43420.0,9.82594443]
[1646319969043,0.355387,43426.0,43420.0,9.82594443]
[1646319969243,0.355387,43424.0,43420.0,9.82594443]
[1646319969448,0.115227,43425.0,43420.0,9.82594443]
[1646319969846,0.115227,43425.0,43423.0,0.21448035]
[1646319969847,0.5,43424.0,43423.0,0.21448035]
[1646319970044,0.855387,43424.0,43421.0,0.05760969]
[1646319970243,0.655387,43423.0,43421.0,0.05760969]
[1646319970447,0.655387,43423.0,43420.0,9.82594443]
[1646319970448,0.33873068,43422.0,43420.0,9.76736569]
[1646319970645,1.41282278,43421.0,43420.0,7.33290403]
[1646319970844,1.41282278,43421.0,43420.0,6.31230403]
[1646319970845,0.83651768,43421.0,43420.0,6.31230403]
[1646319971048,1.5468003,43421.0,43420.0,5.95000003]
[1646319971244,1.73383024,43421.0,43420.0,5.78054104]
[1646319971445,1.73383024,43421.0,43420.0,5.74854104]
[1646319971645,1.12354762,43421.0,43420.0,5.40275904]
[1646319971845,1.12354762,43421.0,43420.0,5.39775904]
[1646319971846,0.93651768,43421.0,43420.0,5.39775904]
[1646319972047,0.5424,43421.0,43420.0,5.39775904]
[1646319972244,0.855387,43421.0,43420.0,5.05204804]
[1646319972700,0.89411768,43421.0,43420.0,4.70633204]
[1646319973100,0.855387,43421.0,43420.0,4.70633204]
[1646319974103,0.855387,43421.0,43420.0,4.88966107]
[1646319974302,0.859387,43421.0,43420.0,4.70633204]
[1646319975302,0.859387,43421.0,43420.0,4.36060604]
[1646319975703,0.855387,43421.0,43420.0,4.01490804]
[1646319976740,0.855387,43421.0,43420.0,3.98960804]
[1646319977036,0.855387,43421.0,43420.0,3.55685978]
[1646319977037,2.20656318,43421.0,43420.0,3.55685978]
[1646319977335,1.51056318,43421.0,43420.0,3.17805478]
[1646319977535,1.51056318,43421.0,43420.0,3.17585478]
[1646319977837,1.76419673,43421.0,43420.0,2.47872678]
[1646319978034,1.76419673,43421.0,43420.0,2.03006298]
[1646319978035,2.30292741,43421.0,43420.0,2.03006298]
[1646319978236,0.855387,43420.0,43388.0,0.5744]
[1646319978441,0.855387,43420.0,43395.0,0.05764739]
[1646319978442,0.355387,43406.0,43395.0,0.05764739]
[1646319978637,0.355387,43404.0,43395.0,0.05764739]
[1646319979036,0.355387,43404.0,43397.0,0.1937361]
[1646319979237,0.0424,43403.0,43397.0,0.1937361]
[1646319979437,0.355387,43402.0,43397.0,0.1937361]
[1646319979742,0.355387,43402.0,43399.0,0.05874137]
[1646319979936,0.355387,43402.0,43399.0,0.28904509]
[1646319980193,0.355387,43402.0,43399.0,0.05874137]
[1646319980405,0.557644,43403.0,43399.0,0.05874137]
[1646319980406,0.557644,43403.0,43401.0,0.5142919]
[1646319980597,0.557644,43403.0,43401.0,0.2142919]
[1646319980796,0.557644,43403.0,43401.0,0.5142919]
[1646319980996,0.55,43416.0,43405.0,1.0]
[1646319981196,0.56298827,43416.0,43415.0,0.16898225]
[1646319981397,0.485,43424.0,43406.0,0.50991402]
[1646319981398,0.0138699,43415.0,43406.0,0.50991402]
[1646319981595,0.04799,43424.0,43408.0,0.00015281]
[1646319981596,0.057623,43410.0,43408.0,0.00015281]
[1646319981797,0.355387,43409.0,43408.0,0.00015281]
[1646319981997,0.655387,43409.0,43408.0,0.00015281]
[1646319982197,0.355387,43409.0,43408.0,0.00015281]
[1646319982399,0.39811768,43409.0,43408.0,0.00015281]
[1646319982596,0.359387,43409.0,43404.0,0.08088814]
[1646319982999,0.359387,43409.0,43407.0,0.24664217]
[1646319983197,0.359387,43409.0,43405.0,0.05762877]
[1646319983397,0.359387,43409.0,43406.0,0.17153519]
[1646319983599,0.355387,43409.0,43406.0,0.17153519]
[1646319983845,0.057623,43410.0,43407.0,0.21989014]
[1646319984147,0.057623,43410.0,43405.0,0.05762877]
[1646319984148,0.355387,43409.0,43405.0,0.05762877]
[1646319984348,0.355387,43408.0,43405.0,0.05762877]
[1646319984547,0.355387,43408.0,43404.0,0.19614652]
[1646319984548,0.413026,43408.0,43404.0,0.19614652]
[1646319984746,0.528304,43408.0,43404.0,0.08088814]
[1646319984948,0.528304,43408.0,43404.0,0.05763696]
[1646319985247,0.528304,43408.0,43401.0,0.002]
[1646319985447,0.355387,43406.0,43401.0,0.002]
[1646319985649,0.355387,43406.0,43400.0,5.11647553]
[1646319985846,0.655387,43406.0,43400.0,5.11647553]
[1646319986046,0.655387,43406.0,43401.0,0.05763729]
[1646319986047,0.057638,43405.0,43401.0,0.05763729]
[1646319986248,0.413024,43404.0,43402.0,0.24462601]
[1646319986547,0.413024,43404.0,43401.0,0.0527906]
[1646319986748,0.172928,43403.0,43401.0,0.00015331]
[1646319986948,0.355387,43402.0,43401.0,0.00015331]
[1646319987148,0.172928,43403.0,43401.0,0.20408239]
[1646319987351,0.172928,43403.0,43401.0,0.74074796]
[1646319987590,0.172928,43403.0,43401.0,0.4744175]
[1646319987791,0.355387,43402.0,43401.0,0.26156643]
[1646319987991,0.355387,43402.0,43401.0,0.05763735]
[1646319988196,0.355387,43402.0,43400.0,5.11647553]
[1646319988394,0.358387,43402.0,43400.0,5.11647553]
[1646319988794,0.358387,43402.0,43401.0,0.18443497]
[1646319988994,0.358387,43402.0,43400.0,5.11647553]
[1646319989592,0.355387,43402.0,43400.0,5.11647553]
[1646319990394,0.359387,43402.0,43400.0,5.0012]
[1646319990797,0.359387,43402.0,43400.0,5.05883896]
[1646319990995,0.359387,43402.0,43400.0,4.96658979]
[1646319991652,0.355387,43402.0,43400.0,4.96658979]
[1646319992054,0.31070779,43401.0,43400.0,4.96658979]
[1646319992252,0.655387,43401.0,43400.0,4.96658979]
[1646319992453,0.355387,43401.0,43400.0,4.96658979]
[1646319993358,0.355387,43401.0,43400.0,4.92618979]
[1646319994155,0.65447058,43401.0,43400.0,4.92618979]
[1646319994558,0.39411768,43401.0,43400.0,4.92618979]
[1646319994760,0.49411768,43401.0,43400.0,4.92618979]
[1646319994959,1.19011768,43401.0,43400.0,4.5193756]
[1646319995203,1.19011768,43401.0,43400.0,4.4819756]
[1646319995204,1.23251768,43401.0,43400.0,4.4819756]
[1646319995403,0.5515295,43401.0,43400.0,4.08393435]
[1646319995605,1.49849966,43401.0,43400.0,4.04932828]
[1646319995805,0.80249966,43401.0,43400.0,4.04822828]
[1646319996009,0.80249966,43401.0,43400.0,3.70230528]
[1646319996204,0.5515295,43401.0,43400.0,3.70230528]
[1646319996403,0.5515295,43401.0,43400.0,3.34977228]
[1646319996608,1.76459853,43401.0,43400.0,2.96706584]
[1646319996805,2.09529386,43401.0,43400.0,2.49817883]
[1646319997003,2.09529386,43401.0,43400.0,2.11001409]
[1646319997203,2.36676493,43401.0,43400.0,1.76404209]
[1646319997405,2.36676493,43401.0,43400.0,1.72943442]
[1646319997606,1.67076493,43401.0,43400.0,1.38346342]
[1646319997907,1.45798875,43401.0,43400.0,1.38346342]
[1646319998106,0.93862267,43401.0,43400.0,1.38346342]
[1646319998305,0.93862267,43401.0,43400.0,1.34955544]
[1646319998710,0.97735335,43401.0,43400.0,1.34955544]
[1646319999459,2.7953454,43401.0,43400.0,1.00358644]
[1646319999659,0.83862267,43401.0,43400.0,1.00358644]
[1646320000459,0.87735335,43401.0,43400.0,1.00358644]
[1646320000662,0.82862267,43401.0,43400.0,1.00358644]
[1646320001660,0.92862267,43401.0,43400.0,1.00358644]
[1646320001860,0.96735335,43401.0,43400.0,1.00358644]
[1646320002463,0.97135335,43401.0,43400.0,1.00358644]
[1646320003794,0.96735335,43401.0,43400.0,1.00358644]
[1646320004794,1.44030705,43401.0,43400.0,1.00358644]
[1646320004997,1.23628979,43401.0,43400.0,1.00358644]
[1646320005595,1.27868979,43401.0,43400.0,1.00358644]
[1646320006193,1.56719146,43401.0,43400.0,0.65762244]
[1646320006444,1.56719146,43401.0,43392.0,0.10366842]
[1646320006445,0.696,43399.0,43392.0,0.10366842]
[1646320006644,0.696,43399.0,43375.0,0.4821]
[1646320006645,1.396,43391.0,43380.0,0.0011]
[1646320006842,1.396,43391.0,43379.0,0.00194799]
[1646320006843,0.3,43381.0,43379.0,0.00194799]
[1646320007042,0.3,43381.0,43358.0,1.1091]
[1646320007043,0.21277618,43375.0,43356.0,0.0044]
[1646320007242,1.22000313,43362.0,43345.0,0.01994906]
[1646320007445,1.22000313,43362.0,43341.0,0.1782849]
[1646320007446,0.655423,43346.0,43341.0,0.1782849]
[1646320007644,0.16838888,43350.0,43331.0,0.20080792]
[1646320007645,0.708349,43342.0,43331.0,0.01]
[1646320007844,0.81562904,43345.0,43320.0,0.01806183]
[1646320007845,0.355423,43331.0,43320.0,0.01806183]
[1646320008044,0.03873068,43327.0,43321.0,1.7310185]
[1646320008243,0.18658795,43330.0,43321.0,1.59862782]
[1646320008244,0.655423,43326.0,43321.0,1.59862782]
[1646320008444,1.03873068,43322.0,43312.0,0.04183183]
[1646320008647,0.01388955,43313.0,43300.0,0.00863065]
[1646320008847,0.057775,43309.0,43300.0,0.00863065]
[1646320009050,0.057775,43309.0,43304.0,0.21462879]
[1646320009247,0.057775,43309.0,43307.0,0.07096737]
[1646320009248,0.3,43308.0,43307.0,0.07096737]
[1646320009443,0.046648,43310.0,43307.0,0.15]
[1646320009646,1.355568,43308.0,43300.0,0.00863065]
[1646320009845,0.05944792,43310.0,43293.0,2.15505282]
[1646320009846,0.0424,43310.0,43301.0,0.15]
[1646320010109,0.057775,43309.0,43304.0,0.08838155]
[1646320010307,5e-06,43308.0,43307.0,0.08838155]
[1646320010507,0.0424,43323.0,43307.0,0.08838155]
[1646320010508,0.251065,43333.0,43313.0,0.08838155]
[1646320010709,0.251065,43333.0,43331.0,0.248027]